bitfinex/quotes_ETHUSD_20251122
["timestamp","ask_amount","ask_price","bid_price","bid_amount"]
[1763800343228,4.97594752,2729.8,2728.7,0.19095715]
[1763800343522,0.62259475,2729.7,2728.7,0.19095715]
[1763800343724,0.62259475,2729.7,2728.8,0.0672]
[1763800343725,0.405504,2729.6,2728.8,0.0672]
[1763800344019,0.405504,2729.6,2728.0,0.1172]
[1763800344020,0.6428,2728.9,2728.0,0.1172]
[1763800344160,0.4681,2729.5,2728.0,0.5532]
[1763800344364,0.405504,2729.3,2728.1,0.436]
[1763800344693,1.31249664,2729.3,2728.1,0.436]
[1763800344898,1.31249664,2728.9,2727.5,0.436]
[1763800345102,0.405504,2728.7,2727.7,0.1172]
[1763800345284,0.405504,2728.7,2727.1,0.436]
[1763800345285,0.405504,2728.4,2727.1,0.436]
[1763800345515,0.125,2728.3,2727.1,0.436]
[1763800345659,0.4681,2728.4,2727.1,0.436]
[1763800346002,0.405504,2728.2,2727.0,0.1596]
[1763800346173,0.405504,2728.2,2727.0,0.1096]
[1763800346370,5.38145152,2728.0,2727.0,0.1096]
[1763800346572,5.38145152,2728.0,2726.6,0.436]
[1763800346573,1.61694779,2727.9,2726.6,0.436]
[1763800346783,0.405504,2727.8,2726.6,0.436]
[1763800347186,0.4681,2727.8,2726.7,0.386]
[1763800347391,0.1852,2728.2,2727.7,0.1096]
[1763800347773,0.125,2728.1,2727.7,0.1096]
[1763800348384,0.125,2728.1,2727.4,0.1096]
[1763800349722,1.56029264,2728.8,2727.5,0.386]
[1763800349928,1.05912802,2728.7,2727.5,0.386]
[1763800350221,0.125,2728.6,2727.5,0.386]
[1763800350922,0.1852,2728.8,2727.6,0.405504]
[1763800350923,0.125,2728.7,2727.6,0.405504]
[1763800351129,5.44404752,2729.4,2728.6,0.1172]
[1763800351287,1.57639739,2729.3,2728.6,0.1172]
[1763800351484,2.04449739,2729.3,2728.3,0.1172]
[1763800351690,0.51390096,2729.2,2728.3,0.1172]
[1763800352023,0.4681,2729.2,2728.3,0.1172]
[1763800352412,0.125,2729.1,2728.4,0.386]
[1763800352614,0.04580432,2729.0,2728.4,0.386]
[1763800353229,0.04580432,2729.0,2728.3,0.1172]
[1763800353525,0.04580432,2729.0,2728.3,0.5032]
[1763800353928,0.04579425,2729.6,2728.4,0.386]
[1763800354234,0.17079593,2729.5,2728.4,0.386]
[1763800354729,0.51389761,2729.4,2728.3,0.1172]
[1763800355092,0.4681,2729.4,2728.3,0.1172]
[1763800355292,0.23099257,2729.7,2728.4,0.386]
[1763800355567,0.125,2729.6,2728.4,0.386]
[1763800355740,0.5776,2729.6,2728.4,0.386]
[1763800356140,0.125,2729.6,2728.4,0.386]
[1763800356633,0.23098586,2730.1,2728.4,0.386]
[1763800356847,0.125,2730.0,2728.4,0.386]
[1763800357050,0.125,2730.0,2728.5,0.41684725]
[1763800357417,0.125,2730.0,2728.6,0.386]
[1763800357613,0.4526,2729.9,2728.6,0.386]
[1763800357937,0.0457909,2729.8,2728.6,0.386]
[1763800358130,0.4526,2729.9,2728.6,0.386]
[1763800358517,0.57493319,2730.0,2728.6,0.386]
[1763800358719,0.125,2729.9,2728.6,0.386]
[1763800359219,0.0457909,2729.8,2728.6,0.386]
[1763800359420,0.5776,2729.9,2728.6,0.386]
[1763800359618,0.4983909,2729.8,2728.3,0.1172]
[1763800359818,0.4526,2729.8,2728.3,0.1172]
[1763800360052,0.4526,2729.8,2728.3,0.5032]
[1763800360236,0.04579257,2729.7,2728.3,0.5032]
[1763800360443,0.4526,2729.8,2728.3,0.5032]
[1763800360657,0.62339257,2729.7,2728.4,0.386]
[1763800361021,0.4526,2729.6,2728.4,0.386]
[1763800363123,0.04579593,2729.5,2728.4,0.386]
[1763800363460,0.4526,2729.6,2728.4,0.386]
[1763800363962,0.04579593,2729.5,2728.4,0.386]
[1763800364263,0.4526,2729.6,2728.4,0.386]
[1763800364619,0.76030726,2729.9,2728.4,0.386]
[1763800364620,0.04579593,2729.5,2728.4,0.386]
[1763800364829,0.125,2729.6,2728.4,0.386]
[1763800365235,0.5776,2729.6,2728.4,0.386]
[1763800365544,0.125,2729.6,2728.4,0.386]
[1763800366125,0.125,2729.6,2728.4,0.06648]
[1763800366328,0.76192465,2729.9,2728.4,3.66511457]
[1763800366631,0.125,2729.9,2728.5,0.37823146]
[1763800367654,0.0457909,2729.8,2728.5,0.37823146]
[1763800367831,0.88765758,2729.9,2728.4,1.31249664]
[1763800368058,0.57493554,2729.6,2728.5,0.0665]
[1763800368748,0.04579593,2729.5,2728.5,0.0665]
[1763800369263,0.04579593,2729.5,2729.4,0.0665]
[1763800369426,0.57493554,2729.6,2729.4,0.0665]
[1763800369629,0.57493554,2729.6,2728.9,0.0665]
[1763800369824,0.002,2730.0,2729.5,0.0665]
[1763800370423,0.4546,2730.0,2729.2,0.0665]
[1763800370625,0.4546,2730.0,2728.8,0.0665]
[1763800371843,1.21969502,2730.0,2728.8,0.0665]
[1763800372049,0.4526,2729.9,2728.8,0.0665]
[1763800372249,0.76509502,2729.8,2728.8,0.0665]
[1763800372748,1.21769502,2729.7,2728.5,0.0665]
[1763800372959,1.68234382,2729.6,2728.5,0.0665]
[1763800373161,0.76509502,2729.5,2728.5,0.0665]
[1763800377282,0.76509502,2729.4,2728.5,0.0665]
[1763800377484,0.76509502,2729.5,2728.5,0.0665]
[1763800377783,0.76509502,2729.4,2728.5,0.0665]
[1763800377974,0.76509502,2729.5,2728.5,0.0665]
[1763800378174,0.9785894,2729.4,2728.5,0.0665]
[1763800378370,0.76509502,2729.3,2728.5,0.0665]
[1763800378774,0.21349438,2729.4,2728.5,0.0665]
[1763800378981,0.9785894,2729.4,2728.5,0.0665]
[1763800379281,0.76509502,2729.3,2728.5,0.0665]
[1763800380303,0.21349438,2729.4,2728.5,0.0665]
[1763800380612,0.77064797,2729.3,2728.5,0.0665]
[1763800380770,0.77064797,2729.2,2728.5,0.0665]
[1763800380970,0.66609438,2729.4,2728.3,0.1172]
[1763800380971,0.81644725,2729.3,2728.3,0.1172]
[1763800381171,1.105101,2729.2,2728.3,0.1172]
[1763800381488,1.105101,2729.2,2728.4,0.0665]
[1763800381489,1.35640614,2729.1,2728.4,0.0665]
[1763800381654,1.10517558,2729.0,2727.7,0.0665]
[1763800381855,0.77064797,2728.9,2727.8,0.0665]
[1763800382056,0.77064797,2728.8,2727.8,0.0665]
[1763800382393,0.77064797,2728.7,2727.8,0.0665]
[1763800382569,0.77064797,2728.6,2727.8,0.0665]
[1763800382753,0.77064797,2728.7,2727.8,0.0665]
[1763800382952,1.10504468,2728.6,2727.8,0.0665]
[1763800383157,1.34574694,2728.5,2727.8,0.0665]
[1763800383359,0.57509897,2728.5,2727.8,0.0665]
[1763800383579,0.77041493,2728.7,2727.8,0.0665]
[1763800383892,1.13210146,2728.7,2727.6,0.90699264]
[1763800384059,1.13210146,2728.7,2727.5,3.8685]
[1763800384060,1.55735428,2728.6,2727.5,3.8685]
[1763800384258,1.10475428,2728.5,2727.5,3.8685]
[1763800384458,0.4526,2728.6,2727.5,3.802]
[1763800384659,1.22267869,2728.6,2727.5,3.8685]
[1763800384877,0.125,2728.5,2727.6,0.39781]
[1763800385079,0.125,2728.7,2727.6,0.46431]
[1763800385279,0.5776,2728.7,2727.6,0.46431]
[1763800385479,1.34711293,2728.7,2727.6,0.46431]
[1763800385684,0.76951293,2728.6,2727.6,0.46431]
[1763800385858,0.76951293,2728.6,2727.7,0.426631]
[1763800386062,0.5776,2728.7,2727.7,0.493131]
[1763800386291,0.125,2728.8,2727.8,0.0665]
[1763800386592,0.4965,2729.0,2727.8,3.73245791]
[1763800386593,0.125,2729.0,2727.8,3.73245791]
[1763800386791,0.58520938,2729.1,2727.9,0.1915]
[1763800387022,0.58520938,2729.1,2728.0,0.38574579]
[1763800387231,0.33390424,2729.1,2728.1,3.802]
[1763800387394,0.95535038,2729.9,2729.0,0.0665]
[1763800387591,1.10339928,2729.8,2729.1,0.0665]
[1763800387896,1.10339928,2729.8,2728.0,1.29273843]
[1763800387897,0.33395157,2729.7,2728.0,0.45224579]
[1763800388220,0.76944771,2729.6,2728.1,0.1915]
[1763800388426,0.33395157,2729.5,2728.2,0.0665]
[1763800388726,0.4985,2730.0,2728.5,0.405504]
[1763800388889,0.4985,2730.0,2729.6,0.0665]
[1763800388890,0.002,2730.0,2729.6,0.0665]
[1763800389298,0.1858,2729.9,2728.4,0.90699264]
[1763800389519,0.1858,2729.9,2728.6,0.1915]
[1763800389732,0.4965,2729.8,2728.6,0.1915]
[1763800390028,0.4965,2729.8,2728.4,0.0665]
[1763800390231,0.125,2729.7,2728.5,0.0665]
[1763800390933,0.4965,2729.8,2728.5,0.0665]
[1763800391115,0.1858,2729.9,2728.5,0.54286776]
[1763800391318,0.77160495,2730.0,2728.6,1.31249664]
[1763800391519,0.77160495,2730.0,2728.7,0.0665]
[1763800391520,0.002,2730.0,2728.7,0.0665]
[1763800392399,0.002,2730.0,2728.8,0.90699264]
[1763800392595,0.002,2730.0,2728.9,0.125]
[1763800392797,0.1858,2729.9,2728.9,0.38561806]
[1763800393162,0.002,2730.0,2729.0,0.1915]
[1763800393307,0.002,2730.0,2729.9,0.0665]
[1763800395231,0.002,2730.0,2729.9,0.133]
[1763800395402,0.002,2730.0,2729.9,3.79613784]
[1763800395724,0.002,2730.0,2729.9,4.20164184]
[1763800396046,0.002,2730.0,2729.9,5.00064319]
[1763800396250,0.4965,2731.3,2730.0,1.31249664]
[1763800396538,0.6823,2731.6,2730.0,1.37899664]
[1763800396839,0.6823,2731.6,2730.2,0.405504]
[1763800397231,0.6823,2731.6,2730.3,0.97349264]
[1763800397536,0.4965,2731.5,2729.9,0.79900135]
[1763800397696,0.4965,2731.5,2730.0,0.125]
[1763800397697,0.5422624,2731.5,2730.0,0.125]
[1763800398024,0.4965,2731.5,2730.1,0.125]
[1763800398195,0.4965,2731.5,2729.6,0.0665]
[1763800398196,0.90699264,2731.3,2729.6,0.0665]
[1763800398396,0.04576742,2731.2,2729.7,0.125]
[1763800398694,0.54226742,2731.2,2729.8,0.125]
[1763800399326,0.4965,2731.2,2729.7,0.125]
[1763800399530,0.0457691,2731.1,2728.9,0.90699264]
[1763800399712,4.97594752,2731.0,2729.2,0.0665]
[1763800399906,0.04577245,2730.9,2729.2,0.1915]
[1763800400127,0.125,2730.8,2729.2,0.1915]
[1763800400306,0.125,2730.8,2729.2,0.0665]
[1763800400630,0.5422758,2730.7,2729.3,0.125]
[1763800400815,0.5422758,2730.7,2728.9,0.0665]
[1763800400816,4.97594752,2730.6,2728.9,0.0665]
[1763800401020,0.55182233,2730.5,2728.9,0.125]
[1763800401221,0.4965,2730.4,2728.9,0.125]
[1763800401420,0.17078251,2730.3,2728.6,0.0665]
[1763800401736,0.04578419,2730.2,2728.7,0.125]
[1763800402029,0.04578419,2730.2,2728.6,0.125]
[1763800402030,0.54228419,2730.2,2728.6,0.125]
[1763800402397,0.4965,2730.2,2728.6,0.125]
[1763800403026,0.4965,2730.2,2728.6,0.0665]
[1763800403228,0.4965,2730.2,2728.6,0.125]
[1763800403401,0.4965,2730.2,2728.7,0.0665]
[1763800403597,0.4965,2730.2,2728.4,0.0665]
[1763800403803,0.04578586,2730.1,2728.5,0.125]
[1763800404211,0.4965,2730.0,2728.4,0.0665]
[1763800404533,0.90699264,2729.7,2728.0,0.45224579]
[1763800404759,1.25034442,2729.6,2727.8,0.001]
[1763800404897,5.20083302,2729.5,2727.9,0.125]
[1763800405103,5.20083302,2729.5,2728.0,0.0665]
[1763800405314,0.4965,2729.4,2728.0,0.97349264]
[1763800405640,0.4965,2729.4,2728.1,0.0665]
[1763800406131,0.4965,2729.8,2728.2,0.37321493]
[1763800406332,0.4965,2729.8,2728.3,0.0665]
[1763800407031,0.4965,2729.8,2728.4,0.405504]
[1763800407337,0.4965,2729.8,2728.5,0.1915]
[1763800407534,0.5422909,2729.8,2728.5,0.1915]
[1763800407913,0.4965,2729.8,2728.5,0.66787063]
[1763800408532,0.04579257,2729.7,2728.5,0.54287063]
[1763800408735,0.4965,2729.8,2728.6,0.125]
[1763800408939,0.4965,2729.7,2728.2,0.37321493]
[1763800409160,0.6489,2728.6,2727.6,0.0665]
[1763800409466,0.1858,2728.6,2727.6,0.0665]
[1763800409640,0.125,2728.9,2727.4,3.90107432]
[1763800409641,0.1858,2728.8,2727.8,0.0675]
[1763800409811,0.57507895,2728.5,2727.8,0.0675]
[1763800410837,0.57507895,2728.5,2728.1,0.0665]
[1763800411038,0.57507895,2728.5,2728.4,0.0665]
[1763800411431,0.1858,2729.1,2728.4,0.0665]
[1763800411624,0.5750153,2728.9,2728.0,0.001]
[1763800411936,0.5750153,2728.9,2728.1,0.125]
[1763800413211,0.5750153,2728.9,2728.0,0.0675]
[1763800413415,0.5750153,2728.9,2728.1,0.125]
[1763800413641,0.4965,2729.0,2728.1,0.125]
[1763800413828,0.4965,2729.0,2728.0,0.5316394]
[1763800414024,0.4965,2729.0,2728.1,0.125]
[1763800414849,0.1858,2729.1,2728.2,3.802]
[1763800415043,0.1858,2729.1,2728.3,0.39935]
[1763800415238,0.4845,2729.0,2728.3,0.39935]
[1763800415436,0.4845,2729.0,2728.2,3.802]
[1763800415640,0.045806,2728.9,2728.2,3.802]
[1763800415954,0.4845,2729.0,2728.2,3.802]
[1763800416146,0.4646,2728.9,2728.2,3.802]
[1763800417559,0.4981,2728.3,2728.0,0.001]
[1763800417855,0.9627,2728.3,2728.0,0.001]
[1763800418025,0.4646,2728.7,2728.0,0.001]
[1763800419248,0.4981,2728.1,2728.0,0.001]
[1763800419688,0.9627,2728.1,2728.0,0.001]
[1763800420644,0.9627,2728.1,2727.8,0.001]
[1763800420844,0.682,2727.9,2727.8,0.001]
[1763800421027,1.1466,2727.9,2727.8,0.001]
[1763800421223,0.682,2727.9,2727.8,0.001]
[1763800421560,0.1839,2728.2,2727.8,0.001]
[1763800421733,0.4981,2727.9,2727.8,0.001]
[1763800422133,0.4646,2728.1,2727.8,0.001]
[1763800422946,0.6485,2728.4,2727.8,0.001]
[1763800423261,0.1839,2728.4,2727.8,0.001]
[1763800423424,0.50871023,2728.3,2727.8,0.001]
[1763800424051,0.4646,2728.3,2727.8,0.001]
[1763800425597,0.1839,2728.4,2727.8,0.001]
[1763800426599,0.1839,2728.6,2727.8,0.4488]
[1763800427103,0.6504,2729.1,2727.9,0.0675]
[1763800427403,0.6504,2729.1,2728.0,0.125]
[1763800427716,0.1858,2729.1,2728.0,0.125]
[1763800427868,0.4646,2729.0,2728.1,0.125]
[1763800429377,0.4646,2729.0,2727.9,0.0675]
[1763800429578,0.4646,2729.0,2728.0,0.125]
[1763800429795,0.4646,2729.0,2727.8,0.3813]
[1763800429975,0.04456586,2728.9,2727.8,0.3813]
[1763800430187,0.4646,2729.0,2727.8,0.001]
[1763800430388,0.57512769,2728.7,2727.8,0.001]
[1763800430818,0.4646,2728.6,2727.8,0.001]
[1763800431670,0.1839,2727.9,2727.8,0.001]
[1763800431866,0.682,2727.9,2727.8,0.001]
[1763800432088,1.1466,2727.9,2727.8,0.001]
[1763800432290,0.682,2727.9,2727.5,0.00068731]
[1763800432693,0.4646,2727.8,2727.5,0.00068731]
[1763800433094,0.4981,2727.6,2727.5,0.00068731]
[1763800433386,0.9627,2727.6,2727.5,0.00068731]
[1763800433780,1.0877,2727.6,2727.5,0.00068731]
[1763800434280,8.20577021,2727.6,2727.5,0.00068731]
[1763800434502,9.02634723,2727.6,2727.5,0.00068731]
[1763800435383,12.29522223,2727.6,2727.5,0.00068731]
[1763800435712,9.02634723,2727.6,2727.5,0.00068731]
[1763800436095,11.65622223,2727.6,2727.5,0.00068731]
[1763800436299,14.73618123,2727.6,2727.5,0.00068731]
[1763800437196,12.72060244,2727.6,2727.5,0.00068731]
[1763800437526,15.78150927,2727.6,2727.5,0.00068731]
[1763800437689,0.90699264,2726.7,2725.4,0.0675]
[1763800437889,0.68613257,2726.6,2725.4,0.0675]
[1763800438190,0.4646,2726.5,2725.4,0.0675]
[1763800438421,0.4646,2726.5,2725.4,0.135]
[1763800438588,0.4646,2726.5,2725.5,0.0675]
[1763800438890,0.3089,2726.6,2725.5,0.0675]
[1763800439082,0.3089,2726.6,2725.6,0.38040713]
[1763800439281,0.125,2726.6,2725.6,0.38040713]
[1763800439519,0.1839,2726.9,2725.7,0.0675]
[1763800439754,0.4646,2726.8,2725.6,0.38040713]
[1763800440041,0.4646,2726.8,2725.7,0.0675]
[1763800440863,0.57543503,2726.6,2725.7,0.0675]
[1763800441028,0.57543503,2726.6,2725.5,0.0675]
[1763800441543,1.04003503,2726.6,2725.5,0.0675]
[1763800441843,0.125,2726.5,2725.4,0.0675]
[1763800442140,0.4646,2726.4,2725.4,0.0675]
[1763800442313,0.4646,2726.4,2725.4,0.135]
[1763800442508,0.4646,2726.4,2725.4,0.0675]
[1763800443128,0.4646,2726.5,2725.4,0.135]
[1763800443964,0.4646,2726.5,2725.4,0.0675]
[1763800444266,0.4646,2726.5,2725.6,0.001]
[1763800445746,0.045848,2726.4,2725.6,0.001]
[1763800445950,0.4646,2726.5,2725.6,0.001]
[1763800446152,0.125,2726.6,2725.7,0.0675]
[1763800446354,0.04584632,2726.5,2725.6,0.001]
[1763800446556,0.57546284,2726.3,2725.6,0.001]
[1763800448576,1.07146284,2726.3,2725.6,0.001]
[1763800448767,0.496,2726.2,2725.6,0.001]
[1763800449351,0.1878,2726.0,2725.6,0.001]
[1763800449759,0.496,2725.9,2725.6,0.001]
[1763800450272,0.1878,2726.0,2725.6,0.001]
[1763800450574,0.6838,2726.0,2725.6,0.001]
[1763800450956,0.496,2725.9,2725.6,0.001]
[1763800451156,0.6838,2726.0,2725.6,0.001]
[1763800451477,0.496,2725.9,2725.6,0.001]
[1763800451659,0.4998,2725.7,2724.0,0.0685]
[1763800451964,0.125,2725.6,2724.0,0.0685]
[1763800452167,0.496,2725.6,2724.1,0.0685]
[1763800452367,0.39167555,2725.5,2724.1,0.0185]
[1763800452669,0.39167555,2725.5,2724.0,0.0685]
[1763800452970,0.496,2725.4,2724.0,0.0685]
[1763800453132,4.70433302,2725.3,2723.5,0.90699264]
[1763800453333,4.70433302,2725.3,2722.7,0.125]
[1763800453334,0.405504,2724.9,2722.7,0.125]
[1763800453641,0.6359837,2724.8,2722.5,8.3774102]
[1763800453834,1.1319837,2724.8,2722.5,4.70433302]
[1763800454056,0.496,2724.7,2722.5,8.37734791]
[1763800454255,0.90699264,2724.5,2722.3,4.70433302]
[1763800454459,0.5109837,2724.8,2723.1,4.70433302]
[1763800454702,0.125,2724.7,2723.2,1.39777594]
[1763800455177,0.125,2724.7,2723.3,0.424004]
[1763800455390,0.125,2725.3,2723.7,0.405504]
[1763800455538,0.496,2725.4,2723.7,0.405504]
[1763800455539,0.496,2725.8,2724.6,0.0185]
[1763800455739,0.04585977,2725.7,2723.8,0.92549264]
[1763800455972,0.04585977,2725.7,2723.9,0.125]
[1763800456173,5.20033302,2725.6,2723.8,0.1435]
[1763800456384,1.06648242,2725.5,2723.9,0.0185]
[1763800456574,4.70433302,2725.2,2723.8,0.47221017]
[1763800456895,0.57637387,2725.1,2723.5,0.0185]
[1763800457103,1.07237387,2725.1,2723.5,0.0185]
[1763800457391,1.07237387,2725.1,2723.2,1.37927594]
[1763800457392,1.97936651,2725.1,2723.2,0.4722833]
[1763800457610,1.79539012,2725.0,2723.1,0.125]
[1763800457759,1.79539012,2725.0,2723.2,0.0185]
[1763800457960,0.901504,2724.9,2723.2,0.0185]
[1763800458206,0.405504,2724.7,2722.9,0.02148804]
[1763800458355,0.125,2724.6,2723.0,0.0185]
[1763800458563,0.6575333,2724.6,2723.0,5.62982566]
[1763800458797,0.125,2724.6,2723.0,5.62982566]
[1763800458996,0.621,2724.6,2723.1,0.0185]
[1763800459169,0.621,2724.6,2723.1,0.424004]
[1763800459501,0.125,2724.6,2723.4,4.70433302]
[1763800459868,0.125,2725.0,2723.5,0.0185]
[1763800460074,0.621,2725.0,2723.6,0.4722833]
[1763800460485,0.621,2725.0,2723.7,0.0185]
[1763800460671,0.621,2725.0,2723.7,0.92549264]
[1763800460871,0.04587324,2724.9,2723.7,0.1435]
[1763800461072,0.621,2725.0,2723.7,0.1435]
[1763800461364,0.621,2725.0,2723.7,1.05049264]
[1763800461562,0.621,2725.0,2723.8,0.51943515]
[1763800461800,0.621,2725.0,2723.8,0.0185]
[1763800462102,0.621,2725.0,2723.9,0.0185]
[1763800462262,0.125,2725.0,2723.9,0.0185]
[1763800462664,0.7627745,2725.4,2724.0,0.90699264]
[1763800462892,0.621,2725.7,2724.1,0.0185]
[1763800463203,0.125,2725.7,2724.1,0.0185]
[1763800463409,0.496,2725.6,2724.1,0.0185]
[1763800463573,0.04586314,2725.5,2724.1,0.0185]
[1763800463972,0.496,2725.4,2724.2,0.125]
[1763800464172,0.496,2725.4,2724.1,0.0185]
[1763800464173,0.04586651,2725.3,2724.1,0.0185]
[1763800464398,0.04586651,2725.3,2723.9,0.90799264]
[1763800464399,0.04586651,2725.3,2723.9,0.001]
[1763800464568,0.496,2725.2,2723.9,0.001]
[1763800464778,0.17086987,2725.1,2723.9,0.001]
[1763800465189,0.496,2725.0,2723.9,0.001]
[1763800465397,0.04587324,2724.9,2723.9,0.001]
[1763800465577,1.0696547,2725.0,2723.9,0.001]
[1763800465783,0.5736547,2724.8,2723.9,0.001]
[1763800465966,2.245863,2724.8,2723.9,0.001]
[1763800466171,0.4998,2724.0,2723.9,0.001]
[1763800466664,1.5694547,2724.0,2723.9,0.001]
[1763800467304,0.125,2724.3,2723.9,0.001]
[1763800467479,0.496,2724.2,2723.9,0.001]
[1763800467908,0.4998,2724.0,2723.9,0.001]
[1763800468288,0.9958,2724.0,2723.9,0.001]
[1763800469416,1.20393528,2724.0,2723.9,0.001]
[1763800469579,2.42084048,2724.0,2723.9,0.001]
[1763800469774,4.23620908,2724.0,2723.9,0.001]
[1763800470028,0.90699264,2723.9,2722.9,0.00298804]
[1763800470173,1.38651281,2723.8,2722.9,0.00298804]
[1763800470373,0.24813054,2723.7,2722.9,0.00298804]
[1763800470773,0.125,2723.8,2722.9,0.00298804]
[1763800470977,0.1878,2723.9,2722.9,0.00298804]
[1763800471174,0.57613809,2724.0,2723.0,0.0195]
[1763800472108,0.54189008,2723.9,2722.9,0.00298804]
[1763800472917,5.95238132,2724.6,2722.9,0.00298804]
[1763800472918,1.05796951,2725.0,2722.9,0.00298804]
[1763800473128,10.49426425,2728.7,2727.4,0.09999999]
[1763800473273,0.33223712,2728.6,2728.2,4.40505257]
[1763800473477,11.65722323,2729.3,2729.1,0.90699264]
[1763800473689,11.65722323,2729.3,2728.6,8.86853982]
[1763800473690,11.65722323,2729.3,2729.2,1.35300316]
[1763800473895,0.002,2730.0,2729.2,2.3487924]
[1763800474079,0.1878,2730.8,2729.5,0.98192072]
[1763800474280,0.1878,2730.8,2729.6,1.12206704]
[1763800474524,0.1878,2730.8,2729.7,1.12206704]
[1763800474685,0.18630139,2730.8,2729.8,1.12206704]
[1763800475014,0.18630139,2730.8,2729.5,3.6636701]
[1763800475015,0.04248583,2730.7,2729.9,1.12206704]
[1763800475226,0.14877444,2733.6,2730.0,1.12206704]
[1763800475404,2.54771,2732.0,2730.3,0.09999999]
[1763800475720,2.28966,2731.8,2731.2,18.37230332]
[1763800475902,1.07849536,2731.7,2731.3,0.77841113]
[1763800476089,1.07849536,2731.7,2731.4,10.37874155]
[1763800476617,6.999515,2731.5,2731.4,1.44794338]
[1763800476782,16.13546803,2731.5,2731.4,7.40735993]
[1763800476978,10.693051,2731.5,2731.4,7.40735993]
[1763800477178,13.742513,2731.3,2731.2,3.28468485]
[1763800477423,14.05441564,2731.2,2730.9,6.46970258]
[1763800477735,14.05441564,2731.2,2730.7,12.97342693]
[1763800477736,0.90699264,2731.3,2731.1,3.22972973]
[1763800477880,15.48598864,2731.2,2731.1,3.22972973]
[1763800478080,24.996975,2731.0,2730.1,6.46970258]
[1763800478310,24.996975,2730.8,2729.1,0.96896176]
[1763800478518,0.1878,2731.3,2729.1,0.96831587]
[1763800478519,0.1882,2729.2,2729.1,0.96831587]
[1763800478880,0.6713,2729.2,2729.1,0.96831587]
[1763800479082,0.6713,2729.2,2729.0,0.96831587]
[1763800479301,0.4831,2729.1,2729.0,0.96831587]
[1763800479884,0.4831,2729.1,2728.9,1.29194902]
[1763800480281,0.1882,2729.2,2729.0,1.29194902]
[1763800480884,0.1882,2729.2,2729.1,1.29194902]
[1763800481099,0.6713,2729.5,2729.0,1.93792353]
[1763800481296,0.6713,2729.5,2729.4,0.96623011]
[1763800481735,0.1882,2730.0,2729.4,0.96623011]
[1763800481736,0.1882,2730.0,2729.4,1.93792353]
[1763800481954,0.4831,2730.4,2729.8,1.28799613]
[1763800482233,0.4831,2730.4,2730.1,0.96597888]
[1763800482559,0.4831,2730.4,2730.3,0.96597888]
[1763800482766,0.4831,2730.4,2729.8,0.96597888]
[1763800482901,0.405504,2729.8,2729.5,0.96597888]
[1763800483103,0.1882,2729.9,2729.6,0.96597888]
[1763800483303,0.1882,2729.9,2729.5,0.96597888]
[1763800483546,0.1882,2729.9,2729.6,0.96597888]
[1763800484037,0.1882,2729.9,2729.7,0.96597888]
[1763800484238,0.4831,2730.2,2729.4,0.09999999]
[1763800484622,0.405504,2730.9,2729.4,0.09999999]
[1763800484836,0.405504,2730.5,2729.3,0.96597888]
[1763800485131,0.405504,2730.5,2729.5,0.09999999]
[1763800485334,0.4831,2730.4,2729.5,0.09999999]
[1763800485837,0.405504,2730.3,2729.1,0.96597888]
[1763800486047,0.405504,2730.3,2729.0,0.001]
[1763800486048,0.1882,2729.6,2729.0,0.001]
[1763800486335,0.1882,2729.6,2729.1,0.09999999]
[1763800486710,0.1882,2729.9,2729.1,0.09999999]
[1763800486911,0.1882,2729.9,2729.1,0.29349999]
[1763800487111,0.4831,2730.2,2729.1,0.29349999]
[1763800487415,0.4831,2730.2,2729.0,0.10099999]
[1763800487637,0.405504,2730.1,2729.0,0.10099999]
[1763800488101,0.4831,2730.2,2729.0,0.001]
[1763800488102,0.4831,2730.0,2729.0,0.001]
[1763800488302,0.4831,2730.0,2729.0,0.10099999]
[1763800488531,0.1882,2729.9,2729.4,0.09999999]
[1763800489443,0.4831,2730.4,2729.4,0.59419999]
[1763800489820,0.4831,2730.4,2729.4,0.09999999]
[1763800490022,0.4831,2730.9,2729.7,0.09999999]
[1763800490328,0.4851,2731.6,2730.3,0.09999999]
[1763800490533,0.4851,2731.6,2730.5,0.09999999]
[1763800491745,0.4851,2731.6,2730.4,0.1935]
[1763800491941,0.4851,2731.6,2730.5,0.09999999]
[1763800492949,0.002,2731.3,2730.7,0.09999999]
[1763800493442,0.002,2731.3,2730.7,0.59419999]
[1763800493649,0.002,2731.3,2730.9,0.09999999]
[1763800493947,0.002,2731.3,2730.7,0.09999999]
[1763800494620,0.002,2731.3,2730.4,0.1935]
[1763800494826,0.405504,2731.1,2729.9,0.1935]
[1763800495329,0.4831,2731.0,2729.9,0.1935]
[1763800495531,0.4831,2731.0,2730.4,0.09999999]
[1763800495746,0.1882,2730.9,2729.9,0.6877]
[1763800496134,0.405504,2730.7,2729.6,0.09999999]
[1763800496361,0.4831,2730.6,2729.5,0.09999999]
[1763800498531,0.4831,2730.6,2729.6,0.09999999]
[1763800499662,0.4831,2730.6,2729.9,0.09999999]
[1763800500426,0.405504,2730.5,2729.3,0.09999999]
[1763800500739,0.4831,2730.6,2729.9,0.001]
[1763800500740,3.19391326,2730.3,2729.9,0.001]
[1763800500951,0.405504,2730.1,2729.9,0.001]
[1763800501135,0.75730029,2730.0,2729.9,0.001]
[1763800501336,4.43431355,2730.0,2729.9,0.001]
[1763800501565,0.90699264,2729.9,2729.6,0.001]
[1763800501857,0.75730029,2729.8,2729.6,0.001]
[1763800502038,2.66249762,2729.7,2729.6,0.001]
[1763800502239,0.75730029,2729.7,2729.6,0.001]
[1763800503349,0.75730029,2729.7,2729.6,0.09999999]
[1763800503665,0.75730029,2729.7,2729.6,0.59419999]